[Event "African Games-chT 2019"]
[Site "Casablanca"]
[Date "2019.08.25"]
[Round "6.12"]
[White "Gabatshwarwe Refilwe"]
[Black "Miladi, Amen"]
[Result "1-0"]
[ECO "A48"]
[WhiteElo "1649"]
[BlackElo "1811"]
[Annotator "NA"]
[PlyCount "95"]
[EventDate "2019.08.24"]
[EventType "team-tourn"]
[EventCountry "MAR"]
[SourceTitle "playchess.com"]
[Source "ChessBase"]
[SourceQuality "1"]
[WhiteTeam "Botswana"]
[BlackTeam "Tunisia"]
[WhiteTeamCountry "BOT"]
[BlackTeamCountry "TUN"]
[TimeControl "900+10"]

1. d4 {[%emt 0:00:00]} Nf6 {[%emt 0:00:00]} 2. Nf3 {[%emt 0:00:00]} g6 {[%emt 0:00:00]} 3. Bf4 {[%emt 0:00:00]} Bg7 {[%emt 0:00:00]} 4. e3 {[%emt 0:00:03]} d6 {[%emt 0:00:00]} 5. h3 {[%emt 0:00:13]} O-O {[%emt 0:00:02]} 6. Be2 {[%emt 0:00:04]} Nbd7 {[%emt 0:00:10]} 7. c3 {[%emt 0:00:08]} Re8 {[%emt 0:00:02]} 8. Bh2 {[%emt 0:00:20]} e5 {[%emt 0:00:02]} 9. dxe5 {[%emt 0:01:09]} dxe5 {[%emt 0:00:31]} 10. Nbd2 {[%emt 0:00:19]} Qe7 {[%emt 0:00:10]} 11. O-O {[%emt 0:00:27]} a5 {[%emt 0:00:32]} 12. Qc2 {[%emt 0:00:54]} b6 {[%emt 0:01:28]} 13. Rfd1 {[%emt 0:01:25]} Bb7 {[%emt 0:00:28]} 14. Nf1 {[%emt 0:00:53]} Rad8 {[%emt 0:00:19]} 15. Rac1 {[%emt 0:00:59]} Be4 {[%emt 0:00:41]} 16. Qb3 {[%emt 0:00:50]} Nc5 {[%emt 0:00:53]} 17. Qa3 {[%emt 0:01:11]} Nfd7 {[%emt 0:00:59]} 18. c4 {[%emt 0:03:35]} h6 19. N1d2 {[%emt 0:00:27]} Bb7 {[%emt 0:03:11]} 20. Nb3 {[%emt 0:00:49]} Qe6 {[%emt 0:02:58]} 21. Nfd2 {[%emt 0:02:03]} Nxb3 {[%emt 0:01:12]} 22. Qxb3 {[%emt 0:00:14]} Nc5 {[%emt 0:00:09]} 23. Qc2 {[%emt 0:00:28]} Qc6 {[%emt 0:00:22]} 24. f3 {[%emt 0:01:07]} e4 {[%emt 0:01:13]} 25. fxe4 {[%emt 0:00:44]} Nxe4 {[%emt 0:00:04]} 26. Nxe4 {[%emt 0:00:13]} Rxd1+ {[%emt 0:00:01]} 27. Rxd1 {[%emt 0:00:10]} Qxe4 {[%emt 0:00:48]} 28. Qxe4 {[%emt 0:00:02]} Rxe4 {[%emt 0:00:04]} 29. Bf3 {[%emt 0:00:03]} Bxb2 {[%emt 0:01:11]} 30. Bxe4 Bxe4 {[%emt 0:00:01]} 31. Bxc7 {[%emt 0:00:05]} a4 {[%emt 0:00:31]} 32. Bxb6 {[%emt 0:00:03]} a3 {[%emt 0:00:04]} 33. Rd8+ Kh7 34. Bd4 {[%emt 0:00:37]} g5 {[%emt 0:00:16]} 35. Rb8 {[%emt 0:00:31]} Bc1 {[%emt 0:00:10]} 36. Kf2 {[%emt 0:00:23]} f5 {[%emt 0:00:11]} 37. g3 {[%emt 0:00:12]} Kg6 {[%emt 0:00:10]} 38. Ke1 {[%emt 0:00:04]} Bg2 {[%emt 0:00:05]} 39. Kd1 {[%emt 0:00:07]} Bb2 {[%emt 0:00:01]} 40. Bxb2 {[%emt 0:00:15]} axb2 {[%emt 0:00:00]} 41. Rxb2 {[%emt 0:00:02]} Bxh3 {[%emt 0:00:01]} 42. Ke2 {[%emt 0:00:07]} Bg2 {[%emt 0:00:01]} 43. Kf2 {[%emt 0:00:01]} Bc6 {[%emt 0:00:03]} 44. Rb6 {[%emt 0:00:01]} h5 {[%emt 0:00:02]} 45. Rxc6+ Kf7 {[%emt 0:00:03]} 46. a4 {[%emt 0:00:02]} h4 {[%emt 0:00:01]} 47. Rh6 {[%emt 0:00:02]} hxg3+ {[%emt 0:00:02]} 48. Kxg3 {[%emt 0:00:01]} 1-0

[Event "African Games-chT 2019"]
[Site "Casablanca"]
[Date "2019.08.25"]
[Round "6.13"]
[White "Adu, Oladapo"]
[Black "Hamdouchi, Hicham"]
[Result "0-1"]
[ECO "B30"]
[WhiteElo "2273"]
[BlackElo "2562"]
[Annotator "ChessBase"]
[PlyCount "84"]
[EventDate "2019.08.24"]
[EventType "team-tourn"]
[EventCountry "MAR"]
[SourceTitle "playchess.com"]
[Source "ChessBase"]
[SourceQuality "1"]
[WhiteTeam "Nigeria"]
[BlackTeam "Morocco"]
[WhiteTeamCountry "NGR"]
[BlackTeamCountry "MAR"]
[TimeControl "900+10"]

1. e4 {[%emt 0:00:00]} c5 {[%emt 0:00:00]} 2. Nf3 {[%emt 0:00:02]} Nc6 {[%emt 0:00:00]} 3. d3 {[%emt 0:00:07]} g6 {[%emt 0:00:00]} 4. g3 {[%emt 0:00:07]} Bg7 {[%emt 0:00:01]} 5. Bg2 {[%emt 0:00:03]} e5 {[%emt 0:00:07]} 6. O-O {[%emt 0:00:03]} Nge7 {[%emt 0:00:01]} 7. c3 {[%emt 0:00:18]} O-O {[%emt 0:00:06]} 8. a3 {[%emt 0:00:05]} d6 {[%emt 0:00:02]} 9. b4 {[%emt 0:00:05]} a6 {[%emt 0:00:01]} 10. Bb2 {[%emt 0:00:06]} h6 {[%emt 0:00:28]} 11. Nbd2 {[%emt 0:00:13]} Be6 {[%emt 0:00:13]} 12. Re1 {[%emt 0:00:35]} b5 {[%emt 0:00:09]} 13. Nb3 {[%emt 0:01:03]} Qb6 {[%emt 0:00:52]} 14. Rb1 {[%emt 0:00:27]} Rad8 {[%emt 0:00:36]} 15. d4 {[%emt 0:00:38]} exd4 {[%emt 0:01:29]} 16. cxd4 {[%emt 0:00:04]} Bxb3 {[%emt 0:00:18]} 17. Qxb3 {[%emt 0:00:03]} Nxd4 {[%emt 0:00:03]} 18. Nxd4 {[%emt 0:00:13]} cxd4 {[%emt 0:00:01]} 19. Red1 {[%emt 0:00:22]} Rc8 {[%emt 0:00:15]} 20. Bh3 {[%emt 0:01:27]} Rc4 {[%emt 0:00:12]} 21. Rbc1 {[%emt 0:00:03]} Qc6 {[%emt 0:00:29]} 22. Qd3 {[%emt 0:00:12]} d5 {[%emt 0:00:30]} 23. exd5 {[%emt 0:01:21]} Nxd5 {[%emt 0:01:25]} 24. Bg2 {[%emt 0:00:32]} Rd8 {[%emt 0:00:03]} 25. h4 {[%emt 0:00:06]} h5 {[%emt 0:00:19]} 26. Qe4 {[%emt 0:01:28]} Qc7 {[%emt 0:01:03]} 27. Re1 {[%emt 0:03:25]} d3 {[%emt 0:02:29]} 28. Rxc4 {[%emt 0:00:51]} bxc4 {[%emt 0:00:02]} 29. Bxg7 {[%emt 0:00:03]} Kxg7 {[%emt 0:00:02]} 30. Qd4+ {[%emt 0:00:03]} Nf6 {[%emt 0:00:01]} 31. Qc3 {[%emt 0:00:01]} d2 {[%emt 0:04:06]} 32. Rd1 {[%emt 0:00:01]} Rd3 {[%emt 0:00:01]} 33. Qc2 {[%emt 0:00:01]} Qe5 {[%emt 0:00:00]} 34. Bf1 {[%emt 0:00:40]} Qe1 {[%emt 0:00:17]} 35. Qb1 {[%emt 0:00:04]} Rxg3+ {[%emt 0:00:28]} 36. fxg3 {[%emt 0:00:01]} Qxg3+ {[%emt 0:00:02]} 37. Bg2 {[%emt 0:00:03]} c3 {[%emt 0:00:09]} 38. Rf1 {[%emt 0:00:49]} Qe3+ {[%emt 0:00:43]} 39. Kh1 {[%emt 0:00:05]} Ng4 {[%emt 0:00:02]} 40. Qb3 {[%emt 0:00:14]} f5 {[%emt 0:00:59]} 41. Rf3 {[%emt 0:00:11]} Qe1+ {[%emt 0:00:13]} 42. Bf1 {[%emt 0:00:12]} d1=Q {[%emt 0:00:09]} 0-1

[Event "African Games-chT 2019"]
[Site "Casablanca"]
[Date "2019.08.25"]
[Round "6.14"]
[White "Tissir, Mohamed"]
[Black "Osunfuyi, Abimbola"]
[Result "1-0"]
[ECO "D04"]
[WhiteElo "2379"]
[BlackElo "2235"]
[Annotator "ChessBase"]
[PlyCount "89"]
[EventDate "2019.08.24"]
[EventType "team-tourn"]
[EventCountry "MAR"]
[SourceTitle "playchess.com"]
[Source "ChessBase"]
[SourceQuality "1"]
[WhiteTeam "Morocco"]
[BlackTeam "Nigeria"]
[WhiteTeamCountry "MAR"]
[BlackTeamCountry "NGR"]
[TimeControl "900+10"]

1. d4 {[%emt 0:00:00]} Nf6 {[%emt 0:00:01]} 2. Nf3 {[%emt 0:00:00]} d5 {[%emt 0:00:31]} 3. e3 {[%emt 0:00:00]} a6 {[%emt 0:01:09]} 4. Bd3 {[%emt 0:00:01]} g6 {[%emt 0:00:32]} 5. O-O {[%emt 0:00:04]} Bg7 {[%emt 0:00:01]} 6. Nbd2 {[%emt 0:00:02]} O-O {[%emt 0:00:03]} 7. Qe2 {[%emt 0:00:03]} c5 {[%emt 0:00:03]} 8. c3 {[%emt 0:00:01]} Nc6 {[%emt 0:00:06]} 9. a3 {[%emt 0:00:11]} Qd6 {[%emt 0:00:16]} 10. dxc5 {[%emt 0:03:42]} Qxc5 {[%emt 0:00:04]} 11. e4 {[%emt 0:00:00]} e5 {[%emt 0:02:57]} 12. Re1 {[%emt 0:04:36]} Bg4 {[%emt 0:00:40]} 13. h3 {[%emt 0:00:40]} Bxf3 {[%emt 0:00:02]} 14. Qxf3 {[%emt 0:00:14]} Rad8 {[%emt 0:00:18]} 15. exd5 {[%emt 0:02:24]} Qxd5 {[%emt 0:00:32]} 16. Bc4 {[%emt 0:01:03]} Qxf3 {[%emt 0:01:41]} 17. Nxf3 {[%emt 0:00:52]} Nd5 {[%emt 0:00:02]} 18. Bg5 {[%emt 0:00:07]} f6 {[%emt 0:01:41]} 19. Rad1 {[%emt 0:00:01]} Nce7 {[%emt 0:00:01]} 20. Be3 {[%emt 0:00:03]} Kh8 {[%emt 0:00:19]} 21. Bc5 {[%emt 0:00:05]} Rfe8 {[%emt 0:00:14]} 22. Rd2 {[%emt 0:01:02]} b5 {[%emt 0:01:16]} 23. Ba2 {[%emt 0:02:36]} Rc8 {[%emt 0:00:07]} 24. Bd6 {[%emt 0:00:26]} Rcd8 {[%emt 0:00:50]} 25. Bc5 {[%emt 0:00:26]} Rc8 {[%emt 0:00:02]} 26. Bd6 {[%emt 0:00:02]} Rcd8 {[%emt 0:00:02]} 27. Bxe7 {[%emt 0:00:04]} Nxe7 {[%emt 0:00:02]} 28. Red1 {[%emt 0:00:00]} Rxd2 {[%emt 0:00:14]} 29. Rxd2 {[%emt 0:00:01]} Nf5 {[%emt 0:00:06]} 30. g4 {[%emt 0:00:07]} e4 {[%emt 0:00:45]} 31. Re2 {[%emt 0:00:42]} Nd6 {[%emt 0:00:07]} 32. Nd4 {[%emt 0:00:01]} f5 {[%emt 0:00:05]} 33. Ne6 {[%emt 0:00:02]} Be5 {[%emt 0:01:01]} 34. f4 {[%emt 0:00:33]} Bf6 {[%emt 0:00:30]} 35. g5 {[%emt 0:00:11]} Bd8 {[%emt 0:00:25]} 36. Nxd8 {[%emt 0:00:16]} Rxd8 {[%emt 0:00:05]} 37. Rd2 {[%emt 0:00:01]} e3 {[%emt 0:01:12]} 38. Rd3 {[%emt 0:00:20]} Re8 {[%emt 0:01:39]} 39. Kf1 {[%emt 0:00:00]} e2+ {[%emt 0:00:53]} 40. Ke1 {[%emt 0:00:02]} Ne4 {[%emt 0:00:03]} 41. Re3 {[%emt 0:00:27]} Kg7 {[%emt 0:00:02]} 42. Bd5 {[%emt 0:00:11]} h6 {[%emt 0:00:06]} 43. h4 {[%emt 0:00:15]} hxg5 {[%emt 0:00:02]} 44. hxg5 {[%emt 0:00:01]} Nd6 {[%emt 0:00:18]} 45. Rxe8 {[%emt 0:00:04]} 1-0

[Event "African Games-chT 2019"]
[Site "Casablanca"]
[Date "2019.08.25"]
[Round "6.15"]
[White "Ogbiyoyo, Perpetual Eloho"]
[Black "Mayar ElIdrissi, Firdaous"]
[Result "0-1"]
[ECO "B23"]
[WhiteElo "1831"]
[BlackElo "1760"]
[Annotator "NA"]
[PlyCount "64"]
[EventDate "2019.08.24"]
[EventType "team-tourn"]
[EventCountry "MAR"]
[SourceTitle "playchess.com"]
[Source "ChessBase"]
[SourceQuality "1"]
[WhiteTeam "Nigeria"]
[BlackTeam "Morocco"]
[WhiteTeamCountry "NGR"]
[BlackTeamCountry "MAR"]
[TimeControl "900+10"]

1. e4 {[%emt 0:00:00]} c5 {[%emt 0:00:00]} 2. Nc3 {[%emt 0:00:00]} e6 {[%emt 0:00:00]} 3. f4 {[%emt 0:00:00]} g6 {[%emt 0:00:00]} 4. Nf3 {[%emt 0:00:02]} Bg7 {[%emt 0:00:06]} 5. Bc4 {[%emt 0:00:03]} Nc6 {[%emt 0:00:08]} 6. O-O {[%emt 0:00:11]} Nge7 {[%emt 0:00:01]} 7. Re1 {[%emt 0:01:12]} O-O {[%emt 0:00:08]} 8. d3 {[%emt 0:00:09]} d5 {[%emt 0:00:08]} 9. Bb5 {[%emt 0:01:15]} Nd4 {[%emt 0:00:20]} 10. Nxd4 {[%emt 0:00:22]} cxd4 {[%emt 0:00:02]} 11. Ne2 {[%emt 0:00:03]} a6 {[%emt 0:00:10]} 12. Ba4 {[%emt 0:00:05]} b5 {[%emt 0:00:03]} 13. Bb3 {[%emt 0:00:02]} Bb7 {[%emt 0:00:31]} 14. Ng3 {[%emt 0:00:04]} a5 {[%emt 0:00:10]} 15. a4 {[%emt 0:00:06]} b4 {[%emt 0:01:07]} 16. Qg4 {[%emt 0:00:25]} dxe4 {[%emt 0:01:18]} 17. Nxe4 {[%emt 0:01:00]} Bd5 {[%emt 0:00:46]} 18. Bxd5 {[%emt 0:01:58]} Nxd5 {[%emt 0:01:05]} 19. Qf3 {[%emt 0:00:48]} Rc8 {[%emt 0:00:13]} 20. Re2 {[%emt 0:00:16]} Rc7 {[%emt 0:01:29]} 21. b3 {[%emt 0:01:28]} Qd7 {[%emt 0:01:52]} 22. Bb2 {[%emt 0:00:23]} Rfc8 {[%emt 0:00:16]} 23. Rc1 {[%emt 0:00:21]} Ne3 {[%emt 0:00:34]} 24. Qf2 {[%emt 0:02:11]} Rc6 {[%emt 0:01:13]} 25. Ng3 {[%emt 0:02:57]} R8c7 {[%emt 0:01:21]} 26. Ba1 {[%emt 0:00:18]} Qc8 {[%emt 0:00:04]} 27. c4 {[%emt 0:00:23]} bxc3 {[%emt 0:00:24]} 28. Rxe3 {[%emt 0:01:09]} dxe3 {[%emt 0:00:06]} 29. Qxe3 {[%emt 0:00:02]} Qd8 {[%emt 0:01:10]} 30. Kh1 {[%emt 0:00:21]} Qd5 {[%emt 0:00:36]} 31. Ne4 {[%emt 0:01:11]} Qxb3 {[%emt 0:00:25]} 32. d4 {[%emt 0:00:58]} Qxa4 {[%emt 0:00:35]} 0-1

[Event "African Games-chT 2019"]
[Site "Casablanca"]
[Date "2019.08.25"]
[Round "6.16"]
[White "Rania, Sbai"]
[Black "Ofowino, Toritsemuwa"]
[Result "0-1"]
[ECO "D04"]
[WhiteElo "1853"]
[BlackElo "1877"]
[Annotator "NA"]
[PlyCount "130"]
[EventDate "2019.08.24"]
[EventType "team-tourn"]
[EventCountry "MAR"]
[SourceTitle "playchess.com"]
[Source "ChessBase"]
[SourceQuality "1"]
[WhiteTeam "Morocco"]
[BlackTeam "Nigeria"]
[WhiteTeamCountry "MAR"]
[BlackTeamCountry "NGR"]
[TimeControl "900+10"]

1. d4 {[%emt 0:00:00]} d5 {[%emt 0:00:00]} 2. Nf3 {[%emt 0:00:00]} Nf6 {[%emt 0:00:00]} 3. e3 {[%emt 0:00:00]} Bg4 {[%emt 0:00:10]} 4. c4 {[%emt 0:01:36]} c6 {[%emt 0:00:22]} 5. Nc3 {[%emt 0:00:03]} e6 {[%emt 0:00:14]} 6. Be2 {[%emt 0:00:20]} Bd6 {[%emt 0:00:17]} 7. Qb3 {[%emt 0:01:37]} Qb6 {[%emt 0:01:11]} 8. O-O {[%emt 0:02:25]} O-O {[%emt 0:01:50]} 9. h3 {[%emt 0:00:50]} Bh5 {[%emt 0:00:13]} 10. Nd2 {[%emt 0:01:20]} Bxe2 {[%emt 0:00:19]} 11. Nxe2 {[%emt 0:00:01]} Qxb3 {[%emt 0:00:16]} 12. axb3 {[%emt 0:00:13]} Nbd7 {[%emt 0:00:42]} 13. Nc3 {[%emt 0:01:47]} a6 {[%emt 0:00:05]} 14. e4 {[%emt 0:00:10]} dxe4 {[%emt 0:00:13]} 15. Ndxe4 {[%emt 0:00:03]} Be7 {[%emt 0:02:04]} 16. Bf4 {[%emt 0:00:29]} Nxe4 {[%emt 0:01:39]} 17. Nxe4 {[%emt 0:00:01]} Nf6 {[%emt 0:00:01]} 18. Nxf6+ {[%emt 0:02:04]} Bxf6 19. Be5 Rfd8 {[%emt 0:00:59]} 20. Rfd1 {[%emt 0:00:46]} Be7 {[%emt 0:00:42]} 21. Rd3 {[%emt 0:00:32]} Rd7 {[%emt 0:00:02]} 22. Rad1 {[%emt 0:00:11]} Rad8 {[%emt 0:00:02]} 23. Kf1 {[%emt 0:00:02]} Bb4 {[%emt 0:00:07]} 24. Ke2 {[%emt 0:00:08]} Bd6 {[%emt 0:01:01]} 25. Ke3 {[%emt 0:01:04]} f6 {[%emt 0:01:44]} 26. Bxd6 {[%emt 0:00:23]} Rxd6 27. Ke4 Kf7 {[%emt 0:00:04]} 28. f4 {[%emt 0:00:40]} Ke7 {[%emt 0:00:36]} 29. f5 {[%emt 0:00:36]} exf5+ {[%emt 0:00:38]} 30. Kxf5 {[%emt 0:00:03]} Re6 {[%emt 0:00:09]} 31. d5 {[%emt 0:00:38]} cxd5 32. cxd5 {[%emt 0:00:04]} Re5+ {[%emt 0:00:17]} 33. Kf4 Kd6 {[%emt 0:00:08]} 34. R1d2 {[%emt 0:00:26]} Rc8 {[%emt 0:00:13]} 35. g3 {[%emt 0:00:37]} Rc5 {[%emt 0:00:02]} 36. Rd4 {[%emt 0:00:32]} Rcxd5 {[%emt 0:00:10]} 37. R2d3 {[%emt 0:00:36]} Rxd4+ {[%emt 0:00:18]} 38. Rxd4+ {[%emt 0:00:01]} Rd5 {[%emt 0:00:00]} 39. Rb4 {[%emt 0:00:08]} Kc6 {[%emt 0:01:54]} 40. Re4 {[%emt 0:00:28]} Rd7 {[%emt 0:00:26]} 41. Ke3 {[%emt 0:00:24]} Rd5 {[%emt 0:00:26]} 42. Kf4 {[%emt 0:00:18]} Kd7 {[%emt 0:00:19]} 43. Re2 {[%emt 0:00:06]} Rd3 {[%emt 0:00:12]} 44. Rc2 {[%emt 0:00:12]} Rxb3 {[%emt 0:00:08]} 45. Rd2+ {[%emt 0:00:01]} Ke7 {[%emt 0:00:02]} 46. Rc2 {[%emt 0:00:02]} Kf7 {[%emt 0:00:21]} 47. h4 {[%emt 0:00:12]} Rb4+ {[%emt 0:00:09]} 48. Kf3 {[%emt 0:00:01]} Kg6 {[%emt 0:00:13]} 49. g4 {[%emt 0:00:05]} h5 {[%emt 0:00:16]} 50. gxh5+ {[%emt 0:00:47]} Kxh5 {[%emt 0:00:02]} 51. Rg2 {[%emt 0:00:02]} g5 {[%emt 0:00:10]} 52. hxg5 {[%emt 0:00:11]} fxg5 {[%emt 0:00:01]} 53. Rh2+ {[%emt 0:00:05]} Kg6 {[%emt 0:00:03]} 54. Rg2 {[%emt 0:00:02]} Kf5 {[%emt 0:00:09]} 55. Rc2 {[%emt 0:00:08]} g4+ {[%emt 0:00:09]} 56. Kg3 {[%emt 0:00:02]} Rb3+ {[%emt 0:00:05]} 57. Kg2 {[%emt 0:00:05]} Kg5 {[%emt 0:00:02]} 58. Rd2 {[%emt 0:00:15]} b6 {[%emt 0:00:09]} 59. Rc2 {[%emt 0:00:02]} a5 {[%emt 0:00:02]} 60. Rd2 {[%emt 0:00:10]} b5 61. Rc2 {[%emt 0:00:17]} a4 {[%emt 0:00:08]} 62. Rd2 {[%emt 0:00:08]} b4 {[%emt 0:00:01]} 63. Kg1 {[%emt 0:00:21]} a3 {[%emt 0:00:07]} 64. bxa3 {[%emt 0:00:08]} bxa3 {[%emt 0:00:01]} 65. Ra2 {[%emt 0:00:10]} g3 {[%emt 0:00:11]} 0-1

[Event "African Games-chT 2019"]
[Site "Casablanca"]
[Date "2019.08.25"]
[Round "6.17"]
[White "Gohil, Mehul"]
[Black "Mesfin, Leykun"]
[Result "1/2-1/2"]
[ECO "A45"]
[WhiteElo "2076"]
[BlackElo "2151"]
[Annotator "ChessBase"]
[PlyCount "205"]
[EventDate "2019.08.24"]
[EventType "team-tourn"]
[EventCountry "MAR"]
[SourceTitle "playchess.com"]
[Source "ChessBase"]
[SourceQuality "1"]
[WhiteTeam "Kenya"]
[BlackTeam "Ethiopia"]
[WhiteTeamCountry "KEN"]
[BlackTeamCountry "ETH"]
[TimeControl "900+10"]

1. d4 {[%emt 0:00:00]} Nf6 {[%emt 0:00:06]} 2. Bg5 {[%emt 0:00:00]} h6 {[%emt 0:00:28]} 3. Bxf6 {[%emt 0:00:08]} exf6 {[%emt 0:00:02]} 4. e3 {[%emt 0:00:14]} Be7 {[%emt 0:00:18]} 5. g3 {[%emt 0:00:27]} O-O {[%emt 0:00:16]} 6. Bg2 {[%emt 0:00:09]} d5 {[%emt 0:00:03]} 7. Ne2 {[%emt 0:00:14]} c6 {[%emt 0:00:02]} 8. O-O {[%emt 0:00:18]} Nd7 {[%emt 0:00:08]} 9. Nd2 {[%emt 0:00:27]} Re8 {[%emt 0:00:02]} 10. c4 {[%emt 0:00:21]} dxc4 {[%emt 0:00:15]} 11. Nxc4 {[%emt 0:00:06]} Nb6 {[%emt 0:00:05]} 12. Nxb6 {[%emt 0:00:59]} Qxb6 {[%emt 0:00:03]} 13. Qc2 {[%emt 0:00:17]} Qa5 {[%emt 0:00:29]} 14. Rfc1 {[%emt 0:01:34]} Bf5 {[%emt 0:00:16]} 15. Qb3 {[%emt 0:02:21]} Rab8 {[%emt 0:00:35]} 16. a3 {[%emt 0:00:33]} Bf8 {[%emt 0:00:18]} 17. Qc3 {[%emt 0:00:20]} Qxc3 {[%emt 0:00:39]} 18. Rxc3 {[%emt 0:00:23]} g5 {[%emt 0:00:12]} 19. Nc1 {[%emt 0:01:08]} Rbd8 {[%emt 0:03:23]} 20. Nb3 {[%emt 0:00:32]} Kg7 {[%emt 0:02:40]} 21. Nc5 {[%emt 0:00:30]} Re7 {[%emt 0:00:04]} 22. Bf3 {[%emt 0:01:08]} Bg6 {[%emt 0:00:17]} 23. Rac1 {[%emt 0:01:00]} f5 {[%emt 0:00:06]} 24. Rb3 {[%emt 0:00:32]} b6 {[%emt 0:01:14]} 25. Nd3 {[%emt 0:00:10]} f4 {[%emt 0:02:09]} 26. Ne5 {[%emt 0:01:26]} Rd6 {[%emt 0:01:48]} 27. Nxc6 {[%emt 0:00:36]} Rc7 {[%emt 0:00:13]} 28. Rbc3 {[%emt 0:00:05]} fxe3 29. fxe3 {[%emt 0:00:09]} h5 {[%emt 0:00:29]} 30. Ne5 {[%emt 0:00:25]} Rxc3 {[%emt 0:00:44]} 31. Rxc3 {[%emt 0:00:03]} Re6 {[%emt 0:00:07]} 32. Rc6 {[%emt 0:00:49]} Bd6 {[%emt 0:01:04]} 33. Bd5 {[%emt 0:01:07]} Rxe5 {[%emt 0:00:32]} 34. dxe5 {[%emt 0:00:02]} Bxe5 {[%emt 0:00:01]} 35. b3 {[%emt 0:00:06]} Bb2 {[%emt 0:00:06]} 36. a4 {[%emt 0:00:01]} Ba3 {[%emt 0:00:03]} 37. Rc7 {[%emt 0:00:09]} a5 {[%emt 0:00:02]} 38. Kf2 {[%emt 0:00:05]} Bc5 {[%emt 0:00:03]} 39. Ke2 {[%emt 0:00:13]} Bd6 {[%emt 0:00:07]} 40. Rb7 {[%emt 0:00:10]} Bc5 {[%emt 0:00:02]} 41. e4 {[%emt 0:00:08]} h4 {[%emt 0:00:16]} 42. gxh4 {[%emt 0:00:07]} gxh4 {[%emt 0:00:01]} 43. h3 {[%emt 0:00:03]} Kf6 {[%emt 0:00:19]} 44. Kf3 {[%emt 0:00:07]} Ke5 {[%emt 0:00:10]} 45. Kg4 {[%emt 0:01:49]} f5+ {[%emt 0:00:03]} 46. Kg5 {[%emt 0:00:17]} fxe4 {[%emt 0:00:33]} 47. Bc4 {[%emt 0:00:04]} Bf5 {[%emt 0:00:16]} 48. Kxh4 {[%emt 0:00:13]} Bf2+ {[%emt 0:00:02]} 49. Kg5 {[%emt 0:00:04]} Bxh3 {[%emt 0:00:24]} 50. Re7+ {[%emt 0:00:14]} Kd4 {[%emt 0:00:04]} 51. Kf4 {[%emt 0:00:09]} Be3+ {[%emt 0:00:14]} 52. Kg3 {[%emt 0:00:02]} Bf5 {[%emt 0:00:17]} 53. Rf7 {[%emt 0:00:08]} Ke5 {[%emt 0:00:10]} 54. Re7+ {[%emt 0:00:10]} Kf6 {[%emt 0:00:11]} 55. Re8 {[%emt 0:00:04]} Bc5 {[%emt 0:00:13]} 56. Kf4 {[%emt 0:00:11]} e3 {[%emt 0:00:34]} 57. Kf3 {[%emt 0:00:17]} Bd7 {[%emt 0:00:08]} 58. Rh8 {[%emt 0:00:14]} Ke5 {[%emt 0:00:10]} 59. Rh4 {[%emt 0:00:11]} Bc6+ {[%emt 0:00:06]} 60. Ke2 {[%emt 0:00:01]} Be4 {[%emt 0:00:04]} 61. Rg4 {[%emt 0:00:07]} Bf5 {[%emt 0:00:08]} 62. Rh4 {[%emt 0:00:09]} Kf6 {[%emt 0:00:07]} 63. Kf3 {[%emt 0:00:05]} Kg5 {[%emt 0:00:07]} 64. Rf4 {[%emt 0:00:38]} Bg6 {[%emt 0:00:08]} 65. Rg4+ {[%emt 0:00:12]} Kh6 {[%emt 0:00:03]} 66. Kf4 {[%emt 0:00:19]} Bc2 {[%emt 0:00:22]} 67. Rg2 {[%emt 0:00:12]} Bd1 {[%emt 0:00:11]} 68. Ke4 {[%emt 0:00:08]} Bh5 {[%emt 0:00:12]} 69. Be2 {[%emt 0:00:08]} Bf7 {[%emt 0:00:04]} 70. Bd1 {[%emt 0:00:05]} Bg6+ {[%emt 0:00:07]} 71. Ke5 {[%emt 0:00:07]} Bd3 {[%emt 0:00:13]} 72. Be2 {[%emt 0:00:09]} Bc2 {[%emt 0:00:05]} 73. Bc4 {[%emt 0:00:17]} Bd1 {[%emt 0:00:02]} 74. Kf6 {[%emt 0:00:15]} Kh5 {[%emt 0:00:05]} 75. Ke5 {[%emt 0:00:18]} Bf3 {[%emt 0:00:06]} 76. Rc2 {[%emt 0:00:17]} Kg4 {[%emt 0:00:05]} 77. Be6+ {[%emt 0:00:14]} Kg3 {[%emt 0:00:03]} 78. Bc4 {[%emt 0:00:01]} Bd1 {[%emt 0:00:10]} 79. Ra2 {[%emt 0:00:04]} Kf3 {[%emt 0:00:03]} 80. Bd5+ {[%emt 0:00:02]} Kg3 {[%emt 0:00:03]} 81. Bc4 {[%emt 0:00:04]} Bb4 {[%emt 0:00:03]} 82. Ke4 {[%emt 0:00:07]} Bd2 {[%emt 0:00:04]} 83. Kd3 {[%emt 0:00:41]} Bc1 {[%emt 0:00:34]} 84. Ke4 {[%emt 0:00:07]} Bf3+ {[%emt 0:00:17]} 85. Kd4 {[%emt 0:00:07]} Bg4 {[%emt 0:00:31]} 86. Be2 {[%emt 0:00:04]} Bxe2 {[%emt 0:00:06]} 87. Rxe2 {[%emt 0:00:01]} Kf3 {[%emt 0:00:01]} 88. Kd3 {[%emt 0:00:01]} Bd2 {[%emt 0:00:06]} 89. Rh2 {[%emt 0:00:10]} Kg3 {[%emt 0:00:09]} 90. Re2 {[%emt 0:00:09]} Kf3 {[%emt 0:00:09]} 91. Rh2 {[%emt 0:00:01]} Kg3 {[%emt 0:00:09]} 92. Rh8 {[%emt 0:00:43]} Kf2 {[%emt 0:00:14]} 93. Rh2+ {[%emt 0:00:03]} Kg3 {[%emt 0:00:05]} 94. Rh6 {[%emt 0:00:05]} Kf2 {[%emt 0:00:08]} 95. Rf6+ {[%emt 0:00:05]} Ke1 {[%emt 0:00:02]} 96. Rxb6 {[%emt 0:00:04]} Kd1 {[%emt 0:00:10]} 97. Re6 {[%emt 0:00:05]} Kc1 {[%emt 0:00:08]} 98. Ke2 {[%emt 0:00:43]} Kb2 {[%emt 0:00:03]} 99. Rb6 {[%emt 0:00:01]} Ka3 {[%emt 0:00:05]} 100. Kd3 {[%emt 0:00:07]} Bb4 {[%emt 0:00:08]} 101. Kxe3 {[%emt 0:00:03]} Kxb3 {[%emt 0:00:01]} 102. Kd3 {[%emt 0:00:01]} Kxa4 {[%emt 0:00:01]} 103. Kc2 {[%emt 0:00:01]} 1/2-1/2